bitfinex-derivatives/quotes_BTCF0:USTF0_20250915
["timestamp","ask_amount","ask_price","bid_price","bid_amount"]
[1757966501340,0.0371,115370.0,115360.0,0.90573473]
[1757966502138,0.02312,115370.0,115360.0,1.35841473]
[1757966502338,0.02312,115370.0,115360.0,1.27841473]
[1757966502539,0.02312,115370.0,115360.0,1.89890551]
[1757966502737,0.02312,115370.0,115360.0,1.97679514]
[1757966502932,0.0021,115370.0,115360.0,1.97679514]
[1757966504435,0.0021,115370.0,115360.0,1.89998551]
[1757966508243,0.0021,115370.0,115360.0,1.10754551]
[1757966508435,0.0021,115370.0,115360.0,1.89970551]
[1757966510243,0.0021,115370.0,115360.0,1.53890551]
[1757966510443,0.0021,115370.0,115360.0,1.89970551]
[1757966511744,0.0021,115370.0,115360.0,1.94108496]
[1757966512744,0.444454,115400.0,115360.0,2.64962719]
[1757966512940,0.85971354,115400.0,115390.0,0.40482023]
[1757966513142,0.78898954,115400.0,115390.0,1.36694023]
[1757966513342,0.76662023,115400.0,115390.0,1.36694023]
[1757966513543,0.40582023,115400.0,115390.0,1.36694023]
[1757966513943,0.41467811,115400.0,115390.0,1.36694023]
[1757966514141,0.41967811,115400.0,115390.0,1.36794023]
[1757966514647,0.41082023,115400.0,115390.0,1.36794023]
[1757966515146,0.41382023,115400.0,115390.0,1.36894023]
[1757966515649,0.41082023,115400.0,115390.0,1.36794023]
[1757966515945,0.40782023,115400.0,115390.0,1.36794023]
[1757966516153,0.76862023,115400.0,115390.0,1.18722023]
[1757966516445,0.76862023,115400.0,115390.0,1.18718023]
[1757966518248,0.77745492,115400.0,115390.0,1.18718023]
[1757966521647,0.77745492,115400.0,115390.0,1.26742023]
[1757966522049,0.38382,115400.0,115390.0,1.52830023]
[1757966522249,0.002,115400.0,115390.0,1.82830023]
[1757966522446,0.002,115400.0,115390.0,2.18910023]
[1757966522957,0.002,115400.0,115390.0,2.18846023]
[1757966523544,0.002,115400.0,115390.0,2.18842023]
[1757966524955,0.002,115400.0,115390.0,1.39686023]
[1757966525250,0.002,115400.0,115390.0,2.18818023]
[1757966525849,0.002,115400.0,115390.0,1.39686023]
[1757966526044,0.002,115400.0,115390.0,2.18814023]
[1757966526349,0.002,115400.0,115390.0,1.02499]
[1757966526655,0.002,115400.0,115390.0,2.18814023]
[1757966532160,0.002,115400.0,115390.0,1.02499]
[1757966532461,0.002,115400.0,115390.0,2.18810023]
[1757966533258,0.002,115400.0,115390.0,1.39686023]
[1757966533758,0.002,115400.0,115390.0,2.18806023]
[1757966539667,0.002,115400.0,115390.0,1.84615]
[1757966539867,0.002,115400.0,115390.0,1.24686023]
[1757966540060,0.002,115400.0,115390.0,2.03802023]
[1757966540662,0.37387023,115400.0,115390.0,1.09686023]
[1757966540864,0.40938023,115400.0,115390.0,0.10331]
[1757966541065,0.77018023,115400.0,115390.0,0.94447]
[1757966541661,0.77018023,115400.0,115390.0,0.15331]
[1757966541867,0.77018023,115400.0,115390.0,0.89447]
[1757966541868,1.02018023,115400.0,115390.0,0.89447]
[1757966544164,1.02018023,115400.0,115390.0,0.10331]
[1757966544365,1.02018023,115400.0,115390.0,0.08124]
[1757966544668,0.03551,115390.0,115380.0,0.0001]
[1757966544871,0.03551,115380.0,115370.0,0.36826]
[1757966545164,0.03551,115380.0,115370.0,0.36176]
[1757966545165,0.76818023,115380.0,115370.0,0.36176]
[1757966545765,1.39005046,115380.0,115370.0,0.36176]
[1757966545964,0.64631,115380.0,115370.0,0.36176]
[1757966546168,1.01918023,115380.0,115370.0,0.36476]
[1757966546465,1.01918023,115380.0,115370.0,0.43583]
[1757966547066,1.01918023,115380.0,115370.0,0.43683]
[1757966548675,1.01918023,115380.0,115370.0,0.80870023]
[1757966548864,1.08848859,115380.0,115370.0,0.80870023]
[1757966550973,1.08848859,115380.0,115370.0,0.43683]
[1757966552376,0.76918023,115380.0,115370.0,0.82058023]
[1757966553881,0.001,115380.0,115370.0,1.41138023]
[1757966554082,0.001,115380.0,115370.0,1.78325046]
[1757966554274,0.001,115380.0,115370.0,1.41138023]
[1757966557783,0.001,115380.0,115370.0,1.48206023]
[1757966559288,0.001,115380.0,115370.0,1.23206023]
[1757966560786,0.0001,115390.0,115370.0,1.23206023]
[1757966560787,0.0001,115390.0,115380.0,0.03332]
[1757966560986,0.38357,115400.0,115390.0,0.03222]
[1757966561286,0.38347,115400.0,115390.0,0.40409023]
[1757966561789,0.75534023,115400.0,115390.0,0.40409023]
[1757966561981,0.76907023,115400.0,115390.0,0.02134]
[1757966562181,0.77107023,115400.0,115390.0,0.81362]
[1757966562576,0.77107023,115400.0,115390.0,0.02234]
[1757966563790,0.77207023,115400.0,115390.0,0.02234]
[1757966566392,0.77207023,115400.0,115390.0,0.04234]
[1757966566691,0.4002,115400.0,115390.0,0.04234]
[1757966566892,0.77207023,115400.0,115390.0,0.04234]
[1757966567191,0.4002,115400.0,115390.0,0.04234]
[1757966567391,0.77207023,115400.0,115390.0,0.04234]
[1757966570794,0.77207023,115400.0,115390.0,0.41421023]
[1757966573798,0.4002,115400.0,115390.0,0.04234]
[1757966580805,0.73064885,115400.0,115390.0,0.34234]
[1757966585608,0.4002,115400.0,115390.0,0.34234]
[1757966585810,0.73064885,115400.0,115390.0,0.34234]
[1757966589507,0.73064885,115400.0,115390.0,0.02234]
[1757966591717,0.73064885,115400.0,115390.0,0.001]
[1757966592208,0.98064885,115400.0,115390.0,0.001]
[1757966593002,0.98064885,115400.0,115390.0,0.021]
[1757966593213,1.00303752,115400.0,115390.0,0.021]
[1757966595209,1.79423752,115400.0,115390.0,0.021]
[1757966595514,0.98064885,115400.0,115390.0,0.021]
[1757966595715,1.77184885,115400.0,115390.0,0.021]
[1757966595914,1.4414,115400.0,115390.0,0.021]
[1757966596215,1.77184885,115400.0,115390.0,0.021]
[1757966596515,1.77184885,115400.0,115390.0,0.04201]
[1757966596712,1.79423494,115400.0,115390.0,0.04201]
[1757966597413,1.77184885,115400.0,115390.0,0.04201]
[1757966597712,1.77276885,115400.0,115390.0,0.04201]
[1757966598615,0.98064885,115400.0,115390.0,0.04201]
[1757966599217,1.77264885,115400.0,115390.0,0.04201]
[1757966600014,0.98064885,115400.0,115390.0,0.04201]
[1757966600212,1.77260885,115400.0,115390.0,0.04201]
[1757966600716,0.98064885,115400.0,115390.0,0.04201]
[1757966600916,1.77256885,115400.0,115390.0,0.04201]
[1757966601818,0.98064885,115400.0,115390.0,0.04201]
[1757966602016,1.77244885,115400.0,115390.0,0.04201]
[1757966602514,0.6502,115400.0,115390.0,0.04201]
[1757966602717,1.77236885,115400.0,115390.0,0.04201]
[1757966603613,0.98064885,115400.0,115390.0,0.02201]
[1757966603814,1.77260885,115400.0,115390.0,0.31201]
[1757966607820,1.77260885,115400.0,115390.0,0.02201]
[1757966608016,1.77260885,115400.0,115390.0,0.021]
[1757966608220,1.77260885,115400.0,115390.0,0.04284]
[1757966610224,1.77260885,115400.0,115390.0,0.1139]
[1757966611223,0.98064885,115400.0,115390.0,0.1139]
[1757966611522,1.77244885,115400.0,115390.0,0.1139]
[1757966612322,1.77244885,115400.0,115390.0,0.0939]
[1757966612528,0.98064885,115400.0,115390.0,0.07206]
[1757966612730,1.77220885,115400.0,115390.0,0.07206]
[1757966614327,1.77220885,115400.0,115390.0,0.0939]
[1757966614624,1.77220885,115400.0,115390.0,0.07206]
[1757966615027,1.87504647,115400.0,115390.0,0.07206]
[1757966615228,1.54459762,115400.0,115390.0,0.07206]
[1757966619332,1.54458954,115400.0,115390.0,0.07206]
[1757966623023,1.87503839,115400.0,115390.0,0.07206]
[1757966623224,2.12503839,115400.0,115390.0,0.00206]
[1757966624736,2.12503839,115400.0,115380.0,0.08035]
[1757966624937,0.71344885,115390.0,115380.0,0.08035]
[1757966625237,0.73582954,115390.0,115380.0,0.08025]
[1757966625840,0.73582954,115390.0,115380.0,0.08325]
[1757966626242,0.73582954,115390.0,115380.0,0.08125]
[1757966626439,0.73682954,115390.0,115380.0,0.08325]
[1757966629841,0.73682954,115390.0,115380.0,0.003]
[1757966631445,0.73682954,115390.0,115380.0,0.08325]
[1757966631743,1.52818954,115390.0,115380.0,0.08325]
[1757966632642,1.19774069,115390.0,115380.0,0.08325]
[1757966632844,1.52818954,115390.0,115380.0,0.08325]
[1757966634341,1.52816033,115390.0,115380.0,0.08325]
[1757966635747,1.94165062,115390.0,115380.0,0.08325]
[1757966636550,1.15029062,115390.0,115380.0,0.08325]
[1757966636744,1.94165062,115390.0,115380.0,0.08325]
[1757966640350,1.15029062,115390.0,115380.0,0.08325]
[1757966640652,1.94165062,115390.0,115380.0,0.10506]
[1757966641552,1.15029062,115390.0,115380.0,0.10506]
[1757966641748,1.94165062,115390.0,115380.0,0.08325]
[1757966642747,1.15029062,115390.0,115380.0,0.10506]
[1757966642953,1.56964105,115390.0,115380.0,0.10506]
[1757966643252,0.77832105,115390.0,115380.0,0.10506]
[1757966643457,0.77832105,115390.0,115380.0,0.11811]
[1757966643955,1.56964105,115390.0,115380.0,0.11811]
[1757966648858,1.56964105,115390.0,115380.0,0.10506]
[1757966649248,1.56964105,115390.0,115380.0,0.08325]
[1757966649451,1.94161062,115390.0,115380.0,0.08325]
[1757966656663,1.15029062,115390.0,115380.0,0.08325]
[1757966656864,1.94157062,115390.0,115380.0,0.08325]
[1757966657655,1.56960105,115390.0,115380.0,0.11811]
[1757966661465,1.19763148,115390.0,115380.0,0.11811]
[1757966661675,1.56960105,115390.0,115380.0,0.11811]
[1757966671075,0.77832105,115390.0,115380.0,0.11811]
[1757966671372,1.56952105,115390.0,115380.0,0.11811]
[1757966672075,1.94149062,115390.0,115380.0,0.08325]
[1757966672472,2.19149062,115390.0,115380.0,0.08325]
[1757966672766,0.03108,115380.0,115370.0,0.07117]
[1757966672973,1.15817062,115380.0,115370.0,0.07107]
[1757966674073,1.15917062,115380.0,115370.0,0.07407]
[1757966674773,1.15917062,115380.0,115370.0,0.07507]
[1757966675476,1.15917062,115380.0,115370.0,0.004]
[1757966676379,1.2298377,115380.0,115370.0,0.004]
[1757966676574,0.8690377,115380.0,115370.0,0.004]
[1757966676879,1.5906377,115380.0,115370.0,0.004]
[1757966678976,2.3818377,115380.0,115370.0,0.004]
[1757966679178,1.63789856,115380.0,115370.0,0.004]
[1757966679376,2.3818377,115380.0,115370.0,0.004]
[1757966681978,1.5906377,115380.0,115370.0,0.004]
[1757966682178,2.3818377,115380.0,115370.0,0.004]
[1757966684786,2.38222693,115380.0,115370.0,0.004]
[1757966684986,1.59102693,115380.0,115370.0,0.004]
[1757966685188,2.38222693,115380.0,115370.0,0.004]
[1757966687588,2.7541965,115380.0,115360.0,0.07117]
[1757966687787,1.12735914,115370.0,115360.0,0.07117]
[1757966687995,1.15009985,115370.0,115360.0,0.07107]
[1757966688598,1.94125985,115370.0,115360.0,0.07107]
[1757966688900,1.94125985,115370.0,115360.0,0.07307]
[1757966689396,1.94129985,115370.0,115360.0,0.07307]
[1757966690199,1.94429985,115370.0,115360.0,0.07407]
[1757966690499,1.94429985,115370.0,115360.0,0.07207]
[1757966690701,1.15509985,115370.0,115360.0,0.07307]
[1757966691197,1.94725985,115370.0,115360.0,0.07307]
[1757966691398,1.94825985,115370.0,115360.0,0.07307]
[1757966694803,1.57629028,115370.0,115360.0,0.07307]
[1757966695003,1.94825985,115370.0,115360.0,0.07307]
[1757966696406,2.19825985,115370.0,115360.0,0.07307]
[1757966697106,1.40709985,115370.0,115350.0,0.0001]
[1757966697306,1.89593914,115360.0,115350.0,0.0001]
[1757966697604,1.91863985,115360.0,115340.0,0.09345]
[1757966697805,1.48281328,115350.0,115340.0,0.09345]
[1757966698004,1.48281328,115350.0,115340.0,0.09335]
[1757966698200,1.48281328,115350.0,115340.0,0.01308]
[1757966698609,1.49137329,115350.0,115340.0,0.01308]
[1757966699803,1.49437329,115350.0,115340.0,0.01408]
[1757966700806,1.49437329,115350.0,115340.0,0.01508]
[1757966700807,1.49637329,115350.0,115340.0,0.01508]
[1757966701107,1.52011176,115350.0,115340.0,0.03658]
[1757966701913,0.72895176,115350.0,115340.0,0.03658]
[1757966702115,1.52011176,115350.0,115340.0,0.05658]
[1757966702314,1.18925848,115350.0,115340.0,0.30658]
[1757966702610,0.37536001,115350.0,115340.0,0.28658]
[1757966703020,0.70621329,115350.0,115340.0,0.28658]
[1757966704400,0.70621329,115350.0,115340.0,0.37658]
[1757966704607,0.70621329,115350.0,115340.0,0.28658]
[1757966707708,0.70621329,115350.0,115340.0,0.36658]
[1757966708013,0.70621329,115350.0,115340.0,0.28658]
[1757966709521,0.37536001,115350.0,115340.0,0.28658]
[1757966709722,0.70621329,115350.0,115340.0,0.28658]
[1757966712324,0.37536001,115350.0,115340.0,0.37658]
[1757966712518,0.70621329,115350.0,115340.0,0.28658]
[1757966712822,0.72896536,115350.0,115340.0,0.28658]
[1757966718227,0.72040535,115350.0,115340.0,0.36658]
[1757966718426,0.38955207,115350.0,115340.0,0.28658]
[1757966719327,0.39841386,115350.0,115340.0,0.28658]
[1757966720025,0.72926714,115350.0,115340.0,0.28658]
[1757966720233,0.70651507,115350.0,115340.0,0.28658]
[1757966720422,0.7292941,115350.0,115340.0,0.28658]
[1757966720729,0.70651507,115350.0,115340.0,0.28658]
[1757966727339,0.72930062,115350.0,115340.0,0.28658]
[1757966727936,0.72930062,115350.0,115340.0,0.03658]
[1757966728136,0.72930062,115350.0,115340.0,0.01408]
[1757966728342,0.72930062,115350.0,115340.0,0.03675]
[1757966729444,0.97930062,115350.0,115340.0,0.01408]
[1757966730136,0.64844734,115350.0,115340.0,0.01408]
[1757966730343,0.97930062,115350.0,115340.0,0.01408]
[1757966730540,0.97930062,115350.0,115340.0,0.03675]
[1757966731442,1.77022062,115350.0,115340.0,0.03675]
[1757966732446,1.43936734,115350.0,115340.0,0.03675]
[1757966732646,1.77022062,115350.0,115340.0,0.03675]
[1757966733345,0.97930062,115350.0,115340.0,0.03675]
[1757966733540,1.77022062,115350.0,115340.0,0.03675]
[1757966735541,1.77022062,115350.0,115340.0,0.01408]
[1757966736746,0.97930062,115350.0,115340.0,0.01408]
[1757966736943,1.77018062,115350.0,115340.0,0.01408]
[1757966737646,0.97930062,115350.0,115340.0,0.01408]
[1757966737846,1.77018062,115350.0,115340.0,0.03675]
[1757966738047,0.97930062,115350.0,115340.0,0.03675]
[1757966738440,1.77018062,115350.0,115340.0,0.03675]
[1757966739249,0.72930062,115350.0,115340.0,0.03675]
[1757966739444,1.52014062,115350.0,115340.0,0.03675]
[1757966740851,0.72930062,115350.0,115340.0,0.03675]
[1757966741043,1.52014062,115350.0,115340.0,0.03675]
[1757966742453,0.72930062,115350.0,115340.0,0.03675]
[1757966742654,1.52010062,115350.0,115340.0,0.03675]
[1757966742954,0.72930062,115350.0,115340.0,0.03675]
[1757966743156,1.52010062,115350.0,115340.0,0.03675]
[1757966744050,0.72930062,115350.0,115340.0,0.03675]
[1757966744452,1.52010062,115350.0,115340.0,0.03675]
[1757966745556,0.72930062,115350.0,115340.0,0.03675]
[1757966745758,1.52006062,115350.0,115340.0,0.03675]
[1757966746255,0.72930062,115350.0,115340.0,0.03675]
[1757966746455,1.52006062,115350.0,115340.0,0.03675]
[1757966753059,1.52006062,115350.0,115340.0,0.01408]
[1757966753360,1.52006062,115350.0,115340.0,0.03675]
[1757966755758,1.52006062,115350.0,115340.0,0.01408]
[1757966756260,1.52006062,115350.0,115340.0,0.03568]
[1757966756760,1.52006062,115350.0,115340.0,0.01408]
[1757966758864,0.72930062,115350.0,115340.0,0.03568]
[1757966759064,1.51990062,115350.0,115340.0,0.03568]
[1757966759266,1.51990062,115350.0,115340.0,0.05568]
[1757966759765,1.9334198,115350.0,115340.0,0.05568]
[1757966760466,1.1428198,115350.0,115340.0,0.05568]
[1757966760861,1.9334198,115350.0,115340.0,0.05568]
[1757966765070,1.1428198,115350.0,115340.0,0.05568]
[1757966765266,1.9333398,115350.0,115340.0,0.05568]
[1757966765762,1.5725398,115350.0,115340.0,0.05568]
[1757966765969,1.9333398,115350.0,115340.0,0.05568]
[1757966767670,1.1428198,115350.0,115340.0,0.13596]
[1757966767872,1.9333398,115350.0,115340.0,0.13596]
[1757966769072,1.9333398,115350.0,115340.0,0.11596]
[1757966773675,1.1428198,115350.0,115340.0,0.11596]
[1757966773878,1.9332198,115350.0,115340.0,0.11596]
[1757966776879,1.9332198,115350.0,115340.0,0.13367]
[1757966778088,1.91043425,115350.0,115340.0,0.13367]
[1757966778388,1.93320681,115350.0,115340.0,0.13367]
[1757966778683,1.93316681,115350.0,115340.0,0.13367]
[1757966778883,1.14280681,115350.0,115340.0,0.13367]
[1757966779087,1.93312681,115350.0,115340.0,0.13367]
[1757966779580,1.93312681,115350.0,115340.0,0.11207]
[1757966783087,1.91035425,115350.0,115340.0,0.11207]
[1757966783784,1.93312789,115350.0,115340.0,0.11207]
[1757966789689,1.14280789,115350.0,115340.0,0.13366]
[1757966789895,1.93300789,115350.0,115340.0,0.13366]
[1757966790089,1.93300789,115350.0,115340.0,0.15366]
[1757966790288,1.14280789,115350.0,115340.0,0.15366]
[1757966790494,0.39843543,115350.0,115340.0,0.52584623]
[1757966790694,1.56082166,115350.0,115340.0,0.52584623]
[1757966790894,0.38957364,115350.0,115340.0,0.52584623]
[1757966791093,0.3668,115350.0,115340.0,0.77584623]
[1757966791395,0.3668,115350.0,115340.0,0.90584623]
[1757966791593,0.73898623,115350.0,115340.0,0.90584623]
[1757966791799,0.73898623,115350.0,115340.0,1.08584623]
[1757966792000,0.3668,115350.0,115340.0,1.08584623]
[1757966792390,0.006,115350.0,115340.0,1.08584623]
[1757966793495,0.006,115350.0,115340.0,1.10570693]
[1757966793992,0.006,115350.0,115340.0,1.11442314]
[1757966794785,0.006,115350.0,115340.0,1.10570693]
[1757966794991,0.0001,115360.0,115350.0,0.03557]
[1757966795194,1.22158708,115380.0,115360.0,0.03557]
[1757966795195,0.37228623,115370.0,115360.0,0.03557]
[1757966795393,1.22168708,115380.0,115360.0,0.55775623]
[1757966795699,0.46316902,115380.0,115370.0,0.03557]
[1757966795886,0.46306872,115380.0,115370.0,0.05557]
[1757966796286,0.44033714,115380.0,115370.0,0.05557]
[1757966796798,0.81252337,115380.0,115370.0,0.05557]
[1757966796992,0.81752337,115380.0,115370.0,0.05657]
[1757966797795,0.82252337,115380.0,115370.0,0.42975623]
[1757966797995,0.82252337,115380.0,115370.0,0.51001623]
[1757966798297,0.82152337,115380.0,115370.0,0.51001623]
[1757966798497,0.82152337,115380.0,115370.0,0.13783]
[1757966798698,0.81852337,115380.0,115370.0,0.13783]
[1757966798995,0.81852337,115380.0,115370.0,0.38783]
[1757966799789,0.81852337,115380.0,115370.0,0.16783]
[1757966800594,0.81852337,115380.0,115370.0,0.13783]
[1757966800990,0.80965331,115380.0,115370.0,0.7802353]
[1757966801195,0.006,115380.0,115370.0,0.7802353]
[1757966801395,0.006,115380.0,115370.0,1.0302353]
[1757966801591,0.006,115380.0,115370.0,1.8201553]
[1757966801998,0.006,115380.0,115370.0,2.1809553]
[1757966802597,0.006,115380.0,115370.0,1.3910353]
[1757966802997,0.006,115380.0,115370.0,2.1809553]
[1757966803193,0.006,115380.0,115370.0,1.8201553]
[1757966803396,0.006,115380.0,115370.0,2.1809553]
[1757966803897,0.006,115380.0,115370.0,1.3910353]
[1757966804097,0.006,115380.0,115370.0,2.1809153]
[1757966804503,0.006,115380.0,115370.0,1.3910353]
[1757966805005,0.006,115380.0,115370.0,2.1808753]
[1757966805504,0.006,115380.0,115370.0,1.3910353]
[1757966805804,0.006,115380.0,115370.0,2.1808753]
[1757966806399,0.006,115380.0,115370.0,1.3910353]
[1757966806803,0.006,115380.0,115370.0,2.1808353]
[1757966807198,0.006,115380.0,115370.0,1.3910353]
[1757966807404,0.0001,115390.0,115380.0,0.03557]
[1757966807605,0.74167037,115400.0,115390.0,0.03557]
[1757966807906,0.74157037,115400.0,115390.0,1.47751623]
[1757966808101,0.38077037,115400.0,115390.0,1.47751623]
[1757966808309,0.74157037,115400.0,115390.0,0.68775623]
[1757966808602,0.38077037,115400.0,115390.0,1.47751623]
[1757966808808,0.74157037,115400.0,115390.0,1.47751623]
[1757966809401,0.74657037,115400.0,115390.0,1.47851623]
[1757966809602,0.75057037,115400.0,115390.0,1.47951623]
[1757966809803,0.74657037,115400.0,115390.0,1.47951623]
[1757966810299,0.74357037,115400.0,115390.0,1.47751623]
[1757966810506,0.74457037,115400.0,115390.0,1.47951623]
[1757966811203,0.74457037,115400.0,115390.0,0.68975623]
[1757966811610,0.74457037,115400.0,115390.0,1.47943623]
[1757966811808,0.74257037,115400.0,115390.0,1.47943623]
[1757966812005,0.74357037,115400.0,115390.0,1.47943623]
[1757966812505,0.38277037,115400.0,115390.0,1.47943623]
[1757966812711,0.002,115400.0,115390.0,1.47943623]
[1757966812910,0.002,115400.0,115390.0,1.84023623]
[1757966813112,0.002,115400.0,115390.0,1.05055623]
[1757966813302,0.002,115400.0,115390.0,1.84019623]
[1757966813507,0.002,115400.0,115390.0,1.05055623]
[1757966813708,0.002,115400.0,115390.0,1.84019623]
[1757966814011,0.002,115400.0,115390.0,1.05055623]
[1757966814213,0.002,115400.0,115390.0,1.84019623]
[1757966814705,0.002,115400.0,115390.0,1.05055623]
[1757966814911,0.002,115400.0,115390.0,1.84015623]
[1757966815713,0.37418623,115400.0,115390.0,1.84015623]
[1757966815908,0.37418623,115400.0,115390.0,1.84011623]
[1757966816111,0.73498623,115400.0,115390.0,1.47931623]
[1757966816412,0.73498623,115400.0,115390.0,0.31757]
[1757966816413,0.98498623,115400.0,115390.0,0.31757]
[1757966816614,0.98498623,115400.0,115390.0,0.03757]
[1757966818314,1.7967575,115400.0,115390.0,0.01598]
[1757966819317,1.7967575,115400.0,115390.0,0.03778]
[1757966819511,1.7967575,115400.0,115390.0,0.01598]
[1757966820420,1.0072375,115400.0,115390.0,0.03778]
[1757966820608,1.7967575,115400.0,115390.0,0.03778]
[1757966822019,1.75513402,115400.0,115390.0,0.03778]
[1757966822918,2.08569677,115400.0,115390.0,0.01598]
[1757966823407,1.75513402,115400.0,115390.0,0.01598]
[1757966825920,2.08569677,115400.0,115390.0,0.01598]
[1757966826418,2.08569677,115400.0,115390.0,0.002]
[1757966827121,2.08569677,115400.0,115390.0,0.01558]
[1757966828320,2.08561677,115400.0,115390.0,0.01558]
[1757966829120,1.29617677,115400.0,115390.0,0.01558]
[1757966829421,2.08561677,115400.0,115390.0,0.01558]
[1757966831019,1.29617677,115400.0,115390.0,0.01558]
[1757966831220,2.08561677,115400.0,115390.0,0.01558]
[1757966831423,1.29617677,115400.0,115390.0,0.01558]
[1757966831619,2.08561677,115400.0,115390.0,0.01558]
[1757966833522,1.29617677,115400.0,115390.0,0.01558]
[1757966833721,2.08561677,115400.0,115390.0,0.01558]
[1757966838724,1.29617677,115400.0,115390.0,0.01558]
[1757966838922,2.08557677,115400.0,115390.0,0.03738]
[1757966839430,1.75501402,115400.0,115390.0,0.03738]
[1757966840828,1.75501402,115400.0,115390.0,0.01558]
[1757966841927,0.71561402,115400.0,115390.0,0.03738]
[1757966842125,1.17445127,115400.0,115390.0,0.03738]
[1757966842326,1.50501402,115400.0,115390.0,0.03738]
[1757966849735,1.83557677,115400.0,115390.0,0.01558]
[1757966853542,1.04617677,115400.0,115390.0,0.01558]
[1757966853836,1.83549677,115400.0,115390.0,0.01558]
[1757966854941,1.04617677,115400.0,115390.0,0.01558]
[1757966855143,1.83549677,115400.0,115390.0,0.01558]
[1757966856640,1.04617677,115400.0,115390.0,0.01558]
[1757966856843,1.83545677,115400.0,115390.0,0.01558]
[1757966858045,1.83545677,115400.0,115390.0,0.03785]
[1757966858247,0.38505127,115400.0,115390.0,0.70841275]
[1757966858448,0.38505127,115400.0,115390.0,0.94841275]
[1757966858844,0.02425127,115400.0,115390.0,0.94841275]
[1757966859145,0.02425127,115400.0,115390.0,1.30921275]
[1757966859342,0.002,115400.0,115390.0,1.05921275]
[1757966861442,0.002,115400.0,115390.0,1.06777148]
[1757966862143,0.002,115400.0,115390.0,1.05921275]
[1757966864759,0.002,115400.0,115390.0,1.51785]
[1757966865052,0.002,115400.0,115390.0,1.84841275]
[1757966865952,0.002,115400.0,115390.0,2.09841275]
[1757966867752,0.0001,115410.0,115400.0,0.03552]
[1757966867960,0.0001,115420.0,115410.0,0.03552]
[1757966868158,0.3609,115430.0,115420.0,0.03552]
[1757966868360,0.3608,115430.0,115420.0,0.03552]
[1757966869859,0.3638,115430.0,115420.0,0.03652]
[1757966870567,0.3668,115430.0,115420.0,0.03752]
[1757966870957,0.43719373,115430.0,115420.0,0.03752]
[1757966871751,0.44602021,115430.0,115420.0,0.03752]
[1757966872163,0.44602021,115430.0,115420.0,0.26752]
[1757966872357,0.44602021,115430.0,115420.0,0.03752]
[1757966872960,0.43719373,115430.0,115420.0,0.32752]
[1757966873166,0.3668,115430.0,115420.0,0.36808275]
[1757966873359,0.3668,115430.0,115420.0,0.39808275]
[1757966873559,0.3668,115430.0,115420.0,1.38712275]
[1757966873963,0.3668,115430.0,115420.0,1.05656]
[1757966874161,0.3668,115430.0,115420.0,1.06656]
[1757966874361,0.006,115430.0,115420.0,0.06752]
[1757966874561,0.006,115430.0,115420.0,0.27752]
[1757966874762,0.006,115430.0,115420.0,1.04652]
[1757966874963,0.006,115430.0,115420.0,0.06752]
[1757966875158,0.006,115430.0,115420.0,1.07652]
[1757966876468,0.006,115430.0,115420.0,1.03648]
[1757966876769,0.006,115430.0,115420.0,0.03752]
[1757966877264,0.006,115430.0,115420.0,1.11648]
[1757966877569,0.006,115430.0,115420.0,0.32752]
[1757966877769,0.006,115430.0,115420.0,1.44704275]
[1757966877966,0.006,115430.0,115420.0,0.36808275]
[1757966878166,0.006,115430.0,115420.0,1.15704275]
[1757966878866,0.006,115430.0,115420.0,0.82648]
[1757966879066,0.006,115430.0,115420.0,0.03752]
[1757966879267,0.006,115430.0,115420.0,0.82644]
[1757966879467,0.006,115430.0,115420.0,0.03752]
[1757966879669,0.006,115430.0,115420.0,0.82644]
[1757966881767,0.006,115430.0,115420.0,1.03644]
[1757966881968,0.006,115430.0,115420.0,1.36700275]
[1757966882167,0.006,115430.0,115420.0,0.41808275]
[1757966882373,0.006,115430.0,115420.0,1.15696275]
[1757966883972,0.37755656,115430.0,115420.0,1.75875656]
[1757966884171,0.006,115430.0,115420.0,1.75875656]
[1757966885371,0.003,115430.0,115420.0,1.75775656]
[1757966885566,0.004,115430.0,115420.0,1.75775656]
[1757966886071,0.001,115430.0,115420.0,1.75675656]
[1757966886375,0.002,115430.0,115420.0,1.75875656]
[1757966886572,0.002,115430.0,115420.0,2.00875656]
[1757966886774,0.002,115430.0,115420.0,2.00975656]
[1757966887272,0.001,115430.0,115420.0,2.00975656]
[1757966887977,0.001,115430.0,115420.0,2.01864962]
[1757966890369,0.001,115430.0,115420.0,2.0886546]
[1757966890771,0.001,115430.0,115420.0,2.1752759]
[1757966892278,0.0001,115440.0,115430.0,0.03493]
[1757966892480,0.3609,115450.0,115440.0,0.03493]
[1757966892780,0.38278828,115450.0,115440.0,1.86676312]
[1757966892981,0.38278828,115450.0,115440.0,1.72676312]
[1757966893474,0.38278828,115450.0,115440.0,1.35520656]
[1757966893982,0.38378828,115450.0,115440.0,0.56748656]
[1757966894173,0.38378828,115450.0,115440.0,1.48620656]
[1757966895080,0.02298828,115450.0,115440.0,1.48620656]
[1757966895280,0.02298828,115450.0,115440.0,1.84700656]
[1757966895479,0.02298828,115450.0,115440.0,1.48920656]
[1757966895680,0.02298828,115450.0,115440.0,1.85000656]
[1757966895880,0.39454484,115450.0,115440.0,0.41048656]
[1757966896079,0.39454484,115450.0,115440.0,1.19916656]
[1757966896277,0.39454484,115450.0,115440.0,1.31916656]
[1757966897781,0.02298828,115450.0,115440.0,1.31916656]
[1757966898480,0.02298828,115450.0,115440.0,1.44916656]
[1757966898886,0.02298828,115450.0,115440.0,1.82072312]
[1757966899586,0.001,115450.0,115440.0,1.82072312]
[1757966900079,0.001,115450.0,115440.0,2.18152312]
[1757966903087,0.001,115450.0,115440.0,1.80984656]
[1757966903487,0.001,115450.0,115440.0,2.18140312]
[1757966903692,0.001,115450.0,115440.0,2.26161312]
[1757966909703,0.001,115450.0,115440.0,2.32153312]
[1757966909895,0.001,115450.0,115440.0,2.12153312]
[1757966912395,0.001,115450.0,115440.0,2.35153312]
[1757966914700,0.001,115450.0,115440.0,2.27132312]
[1757966920695,0.001,115450.0,115440.0,2.27120312]
[1757966922506,0.001,115450.0,115440.0,1.48284312]
[1757966922804,0.001,115450.0,115440.0,2.27120312]